Cogmind - Beta 10.2 @@@ ROGUE MODE // 2021.01.20 @ 17:31:05 Player: zzxc Result: Self-destructed Performance ------------- Evolutions (4) 2000 Regions Visited (8) 1600 Robots Destroyed (1) 5 Value Destroyed (48) 48 Prototype IDs (23) 460 Alien Tech Used (0) 0 Bonus (1283) 1283 TOTAL SCORE: 5396 Bonus ------- Pacifist 1125 Follower Combat Kills 14 Aligned with FarCom 300 Friendly Fire -156 Cogmind --------- Core Integrity 351/850 Matter 300/300 Energy 99/100 System Corruption 10% Temperature Cool (0) Movement Core (50) Location -6/Lower Caves Parts ------- > --- POWER (2) -------- (None) > --- PROPULSION (7) --- (None) > --- UTILITY (4) ------ Visual Processing Unit > --- WEAPON (2) ------- Heavy Pick > --- INVENTORY (4) ---- Light Ion Engine Assault Cannon Assault Cannon Field Lobotomy Kit Peak State ------------ > --- POWER ------------ Light Ion Engine > --- PROPULSION ------- Armored Treads Advanced Treads > --- UTILITY ---------- Visual Processing Unit > --- WEAPON ----------- Heavy Pick > --- INVENTORY -------- Assault Cannon Assault Cannon Field Lobotomy Kit [Rating: 15] Favorites ----------- Power Light Ion Engine Engine Light Ion Engine Propulsion Aluminum Leg Treads Light Treads Leg Aluminum Leg Utility Visual Processing Unit Processor Visual Processing Unit Weapon Heavy Pick Ballistic Gun Assault Rifle Piercing Weapon Heavy Pick Build | -11 -10 -10 -10 -9 -8 -7 -6 -6 ------- Run | Scr Mat Min Exi Min Mat Fac Fac Low Slots Evolved 8 | . . . . . 4 2 2 . Power 1 | . . . . . . . 1 . Propulsion 5 | . . . . . 4 1 . . Utility 2 | . . . . . . 1 1 . Weapon . | . . . . . . . . . Parts Attached 8 | . . . 1 . 5 . 1 1 Power 1 | . . . 1 . . . . . Engine 1 | . . . 1 . . . . . Core . | . . . . . . . . . Reactor . | . . . . . . . . . Propulsion 5 | . . . . . 4 . 1 . Treads 5 | . . . . . 4 . 1 . Leg . | . . . . . . . . . Wheel . | . . . . . . . . . Hover . | . . . . . . . . . Flight . | . . . . . . . . . Utility 1 | . . . . . 1 . . . Device . | . . . . . . . . . Storage . | . . . . . . . . . Processor 1 | . . . . . 1 . . . Hackware . | . . . . . . . . . Protection . | . . . . . . . . . Artifact . | . . . . . . . . . Weapon 1 | . . . . . . . . 1 Energy Gun . | . . . . . . . . . Energy Cannon . | . . . . . . . . . Ballistic Gun . | . . . . . . . . . Ballistic Cannon . | . . . . . . . . . Launcher . | . . . . . . . . . Special Weapon . | . . . . . . . . . Impact Weapon . | . . . . . . . . . Slashing Weapon . | . . . . . . . . . Piercing Weapon 1 | . . . . . . . . 1 Special Melee Weapon . | . . . . . . . . . Unidentified Prototypes . | . . . . . . . . . Parts Lost 6 | . . . . . 2 . 1 3 Power . | . . . . . . . . . Propulsion 6 | . . . . . 2 . 1 3 Utility . | . . . . . . . . . Weapon . | . . . . . . . . . Highest Loss Streak 2 | . . . . . 2 . 1 1 Average Slot Usage (%) 35 | . 28 28 33 42 54 46 40 21 Engine 5 | . . . 5 14 9 7 6 2 Treads 12 | . . . . . 21 30 26 8 Leg 11 | . 28 28 28 28 15 . . . Processor 4 | . . . . . 7 7 6 6 Piercing Weapon 1 | . . . . . . . . 3 Naked Turns . | . . . . . . . . . Heaviest Build 3 | . . . 3 3 3 3 3 3 Greatest Support 60 | 20 20 3 3 3 60 3 3 3 Greatest Overweight (x) . | . . . . . . . . . Average Overweight (x) . | . . . . . . . . . Largest Inventory Capacity 4 | 4 4 4 4 4 4 4 4 4 Average Capacity 4 | 4 4 4 4 4 4 4 4 4 Most Carried 4 | 4 4 4 4 4 4 4 4 4 Average Carried 3 | 3 4 4 3 4 3 4 4 3 Final Capacity 4 | 4 4 4 4 4 4 4 4 4 Final Carried 4 | 4 4 4 4 4 4 4 4 4 Class Distribution -------------------- 100% | Mutant Dominant Class ---------------- Mutant | -10/Materials Mutant | -10/Mines Mutant | -10/Exiles Mutant | -9/Mines Mutant | -8/Materials Mutant | -7/Factory Mutant | -6/Factory Mutant | -6/Lower Caves Resources | -11 -10 -10 -10 -9 -8 -7 -6 -6 ----------- Run | Scr Mat Min Exi Min Mat Fac Fac Low Matter Collected 236 | 200 . . . . . . . 36 Remotely . | . . . . . . . . . Salvage Created 65 | . . . . . . . . 65 Parts . | . . . . . . . . . Haulers Intercepted . | . . . . . . . . . Recyclers Shooed . | . . . . . . . . . Parts Field Recycled . | . . . . . . . . . Retrieved Matter . | . . . . . . . . . Parts Self-Destructed . | . . . . . . . . . Prevented . | . . . . . . . . . Kills | -11 -10 -10 -10 -9 -8 -7 -6 -6 ------- Run | Scr Mat Min Exi Min Mat Fac Fac Low Combat Hostiles Destroyed 1 | . . . . . . . . 1 Melee 1 | . . . . . . . . 1 Classes Destroyed 1 | . . . . . . . . 1 Savage 1 | . . . . . . . . 1 Best Kill Streak 1 | . . . . . . . . 1 Combat Bots Only 1 | . . . . . . . . 1 Max Kills in Single Turn 1 | . . . . . . . . 1 Gunslinging . | . . . . . . . . . Exploded . | . . . . . . . . . Melee 1 | . . . . . . . . 1 Uniques/NPCs Destroyed . | . . . . . . . . . Combat | -11 -10 -10 -10 -9 -8 -7 -6 -6 -------- Run | Scr Mat Min Exi Min Mat Fac Fac Low Damage Taken 1668 | . 8 147 . 12 655 . 194 652 Core 654 | . . 67 . 12 76 . 30 469 Absorbed by Shields . | . . . . . . . . . Core Remaining (%) 88 | 100 . . . 68 86 100 . . Volleys Fired . | . . . . . . . . . Largest . | . . . . . . . . . Hottest . | . . . . . . . . . Shots Fired . | . . . . . . . . . Gun . | . . . . . . . . . Cannon . | . . . . . . . . . Launcher . | . . . . . . . . . Special . | . . . . . . . . . Kinetic . | . . . . . . . . . Thermal . | . . . . . . . . . Explosive . | . . . . . . . . . Electromagnetic . | . . . . . . . . . Robot Hit Streak . | . . . . . . . . . Robot Miss Streak . | . . . . . . . . . Penetration Max . | . . . . . . . . . Secondary Targets . | . . . . . . . . . Shots Hit Robots 4 | . . . . . . . . 4 Core Hits 2 | . . . . . 1 . . 1 Critical Hits 1 | . . . . . . . . 1 Critical Kills . | . . . . . . . . . Critical Parts Destroyed 1 | . . . . . . . . 1 Melee Attacks 6 | . . . . . . . . 6 Impact . | . . . . . . . . . Slashing . | . . . . . . . . . Piercing 6 | . . . . . . . . 6 Sneak Attacks 4 | . . . . . . . . 4 Combat Hostiles 2 | . . . . . . . . 2 Follow-up Attacks . | . . . . . . . . . Damage Inflicted 362 | . . . . . 4 . 9 349 Guns . | . . . . . . . . . Cannons . | . . . . . . . . . Explosions . | . . . . . . . . . Melee 346 | . . . . . . . . 346 Ramming 16 | . . . . . 4 . 9 3 Kinetic . | . . . . . . . . . Thermal . | . . . . . . . . . Explosive . | . . . . . . . . . Electromagnetic . | . . . . . . . . . Impact . | . . . . . . . . . Slashing . | . . . . . . . . . Piercing 346 | . . . . . . . . 346 Highest Corruption 10 | . . . . . . . . 10 Average Corruption 4 | . . . . . . . . 4 Corruption Purged . | . . . . . . . . . Effects 4 | . . . . . . . . 4 Message Errors 3 | . . . . . . . . 3 Energy Discharges 1 | . . . . . . . . 1 Overload Shots . | . . . . . . . . . Overflow Damage . | . . . . . . . . . Projectiles . | . . . . . . . . . Explosions . | . . . . . . . . . Melee . | . . . . . . . . . Knockbacks . | . . . . . . . . . Impact . | . . . . . . . . . Kinetic . | . . . . . . . . . Secondary . | . . . . . . . . . Self-Inflicted Damage 7 | . . . . . 2 . 4 1 Shots . | . . . . . . . . . Rammed 5 | . . . . . 1 . 2 2 Targets Rammed 5 | . . . . . 1 . 2 2 Kicked . | . . . . . . . . . Crushed . | . . . . . . . . . Highest Temperature . | . . . . . . . . . Average Temperature . | . . . . . . . . . Received Heat Transfer 174 | . . 24 . 6 81 . 63 . Siege Activations . | . . . . . . . . . Robots Corrupted . | . . . . . . . . . Combat Hostiles . | . . . . . . . . . Parts Fried . | . . . . . . . . . Impact Corruptions . | . . . . . . . . . Robots Melted . | . . . . . . . . . Combat Hostiles . | . . . . . . . . . Parts Melted . | . . . . . . . . . Heat Transferred . | . . . . . . . . . Parts Sabotaged . | . . . . . . . . . Parts Stolen . | . . . . . . . . . Parts Stripped . | . . . . . . . . . Power Chain Reactions . | . . . . . . . . . Missiles Intercepted . | . . . . . . . . . Alert | -11 -10 -10 -10 -9 -8 -7 -6 -6 ------- Run | Scr Mat Min Exi Min Mat Fac Fac Low Peak Influence 168 | . 30 168 . . 45 20 44 . Initial 20 | . . 11 . . . 20 9 . Average 20 | . 7 94 . . 4 20 21 . Maximum Alert Level . | . . . . . . . . . Low Security (%) 100 | 100 100 100 . 100 100 100 100 . Level 1 . | . . . . . . . . . Level 2 . | . . . . . . . . . Level 3 . | . . . . . . . . . Level 4 . | . . . . . . . . . Level 5 . | . . . . . . . . . High Security . | . . . . . . . . . Max Security . | . . . . . . . . . Squads Dispatched 3 | . 2 . . . 1 . . . Investigation . | . . . . . . . . . Extermination . | . . . . . . . . . Reinforcement 3 | . 2 . . . 1 . . . Assault . | . . . . . . . . . Garrison . | . . . . . . . . . Intercept . | . . . . . . . . . Construction Impeded . | . . . . . . . . . Haulers Reinforced . | . . . . . . . . . Stealth | -11 -10 -10 -10 -9 -8 -7 -6 -6 --------- Run | Scr Mat Min Exi Min Mat Fac Fac Low Distress Signals 1 | . . . . . 1 . . . Communications Jammed . | . . . . . . . . . Distress Signals . | . . . . . . . . . Times Spotted 43 | . 5 9 . 2 21 . 5 1 Peak Tracking Total 17 | . 2 6 . 2 17 . 5 1 Tactical Retreats 3 | . . 2 . . 1 . . . Traps | -11 -10 -10 -10 -9 -8 -7 -6 -6 ------- Run | Scr Mat Min Exi Min Mat Fac Fac Low Traps Triggered 1 | . . . . . . . 1 . Indirectly . | . . . . . . . . . Trap Hack Attempts . | . . . . . . . . . Triggered . | . . . . . . . . . Disarmed . | . . . . . . . . . Reprogrammed . | . . . . . . . . . Reused . | . . . . . . . . . Traps Extracted . | . . . . . . . . . Installed . | . . . . . . . . . Triggered . | . . . . . . . . . Machines | -11 -10 -10 -10 -9 -8 -7 -6 -6 ---------- Run | Scr Mat Min Exi Min Mat Fac Fac Low Machines Disabled . | . . . . . . . . . Max in Single Turn . | . . . . . . . . . Machines Sabotaged . | . . . . . . . . . Garrisons Compromised . | . . . . . . . . . Overloaded Fab Kills . | . . . . . . . . . Fab Network Shutdowns . | . . . . . . . . . Hacking | -11 -10 -10 -10 -9 -8 -7 -6 -6 --------- Run | Scr Mat Min Exi Min Mat Fac Fac Low Machines Accessed 1 | . . . 1 . . . . . Terminals . | . . . . . . . . . Fabricators . | . . . . . . . . . Repair Stations . | . . . . . . . . . Recycling Units . | . . . . . . . . . Scanalyzers . | . . . . . . . . . Garrison Access . | . . . . . . . . . Total Hacks 1 | . . . 1 . . . . . Successful 1 | . . . 1 . . . . . Failed . | . . . . . . . . . Catastrophic . | . . . . . . . . . Database Lockouts . | . . . . . . . . . Manual 1 | . . . 1 . . . . . Terminals . | . . . . . . . . . Fabricators . | . . . . . . . . . Repair Stations . | . . . . . . . . . Recycling Units . | . . . . . . . . . Scanalyzers . | . . . . . . . . . Garrison Access . | . . . . . . . . . Terminal Hacks 1 | . . . 1 . . . . . EX-Prototype ID Bank 1 | . . . 1 . . . . . Fabricator Hacks . | . . . . . . . . . Repair Station Hacks . | . . . . . . . . . Recycling Unit Hacks . | . . . . . . . . . Scanalyzer . | . . . . . . . . . Garrison Access Hacks . | . . . . . . . . . Unauthorized Hacks . | . . . . . . . . . Terminals . | . . . . . . . . . Fabricators . | . . . . . . . . . Repair Stations . | . . . . . . . . . Recycling Units . | . . . . . . . . . Scanalyzers . | . . . . . . . . . Garrison Access . | . . . . . . . . . Data Cores Recovered . | . . . . . . . . . Used . | . . . . . . . . . Hacking Detections . | . . . . . . . . . Full Trace Events . | . . . . . . . . . Feedback Events . | . . . . . . . . . Feedback Blocked . | . . . . . . . . . Robot Schematics Acquired . | . . . . . . . . . Robots Built . | . . . . . . . . . Matter . | . . . . . . . . . Time . | . . . . . . . . . Total Robot Build Rating . | . . . . . . . . . Part Schematics Acquired . | . . . . . . . . . Parts Built . | . . . . . . . . . Matter . | . . . . . . . . . Time . | . . . . . . . . . Total Part Build Rating . | . . . . . . . . . Parts Repaired . | . . . . . . . . . Time . | . . . . . . . . . Parts Recycled . | . . . . . . . . . Recycled Matter . | . . . . . . . . . Retrieved Matter . | . . . . . . . . . Retrieved Components . | . . . . . . . . . Parts Scanalyzed . | . . . . . . . . . Part Schematics Acquired . | . . . . . . . . . Parts Damaged . | . . . . . . . . . Bothacking | -11 -10 -10 -10 -9 -8 -7 -6 -6 ------------ Run | Scr Mat Min Exi Min Mat Fac Fac Low Used RIF Installer . | . . . . . . . . . Robots Hacked . | . . . . . . . . . Non-combat . | . . . . . . . . . Combat . | . . . . . . . . . Robot Hacks Applied . | . . . . . . . . . Relay Couplers Released . | . . . . . . . . . Robots Rewired . | . . . . . . . . . Allies Hacked . | . . . . . . . . . Hacks Repelled . | . . . . . . . . . Allies | -11 -10 -10 -10 -9 -8 -7 -6 -6 -------- Run | Scr Mat Min Exi Min Mat Fac Fac Low Total Allies 2 | . . 2 . . . . . . Largest Group 2 | . . 2 . . . . . . Highest-Rated Group 42 | . . 42 . . . . . . Highest-Rated Ally 31 | . . 31 . . . . . . Total Orders . | . . . . . . . . . Ally Attacks 11 | . . 11 . . . . . . Total Damage 149 | . . 149 . . . . . . Kills 4 | . . 4 . . . . . . Allies Corrupted . | . . . . . . . . . Allies Melted . | . . . . . . . . . Intel | -11 -10 -10 -10 -9 -8 -7 -6 -6 ------- Run | Scr Mat Min Exi Min Mat Fac Fac Low Robot Analysis Total . | . . . . . . . . . Derelict Logs Recovered . | . . . . . . . . . Drone Launches . | . . . . . . . . . Drone Recoveries . | . . . . . . . . . Exploration | -11 -10 -10 -10 -9 -8 -7 -6 -6 ------------- Run | Scr Mat Min Exi Min Mat Fac Fac Low Turns Passed 718 | 8 27 41 120 10 151 62 57 242 Spaces Moved 1039 | 3 49 81 235 20 173 124 104 250 Core 1031 | . 46 81 235 20 171 124 104 250 Treads 2 | . . . . . 2 . . . Legs 6 | 3 3 . . . . . . . Wheels . | . . . . . . . . . Hover . | . . . . . . . . . Flight . | . . . . . . . . . Fastest Speed 50 | 120 50 50 50 50 50 50 50 50 Average Speed 50 | 120 54 50 50 50 51 50 50 50 Slowest Speed 163 | 120 120 50 50 50 163 50 50 50 Overloaded Moves . | . . . . . . . . . Propulsion Burnouts . | . . . . . . . . . Robots Hopped . | . . . . . . . . . Cave-ins Triggered . | . . . . . . . . . Exploration Rate (%) 23 | 2 20 24 62 14 26 5 6 49 Regions Visited 8 Branch Regions 4 Pre-discovered Areas . | . . . . . . . . . Known Exits Taken . | . . . . . . . . . Unknown Exits Taken 8 | 1 1 1 1 1 1 1 1 . Scrap Searched . | . . . . . . . . . Spaces Dug 1 | . . . . . . . . 1 Terrain Destroyed 1 | . . . . . . . . 1 Melee 1 | . . . . . . . . 1 Projectile . | . . . . . . . . . AOE . | . . . . . . . . . Terrain Rammed . | . . . . . . . . . Walls Destroyed . | . . . . . . . . . Machines Disabled . | . . . . . . . . . Actions | -11 -10 -10 -10 -9 -8 -7 -6 -6 --------- Run | Scr Mat Min Exi Min Mat Fac Fac Low Total 1212 | 10 48 80 236 19 233 123 108 355 Wait 148 | . . . . . 53 . . 95 Move 1032 | 2 48 80 234 19 172 123 104 250 Hop . | . . . . . . . . . Pick Up 6 | 2 . . 1 . 2 . 1 . Fast Attach 4 | . . . . . 3 . 1 . Attach 4 | . . . 1 . 2 . . 1 Detach 1 | . . . . . . . . 1 Swap . | . . . . . . . . . Drop 7 | 6 . . . . . . 1 . Fire . | . . . . . . . . . Melee 6 | . . . . . . . . 6 Ram 4 | . . . . . 1 . 1 2 Kick . | . . . . . . . . . Crush . | . . . . . . . . . Escape Stasis . | . . . . . . . . . Rewire . | . . . . . . . . . Trap . | . . . . . . . . . Miscellaneous . | . . . . . . . . . Route ------- -11/Scrapyard -10/Materials -10/Mines -10/Exiles -9/Mines -8/Materials -7/Factory -6/Factory (discovered 2 exits: [*Low x2]) -6/Lower Caves (discovered 1 exit: [*Low]) History --------- Turn | Location | Event 5 | -11/Scrapyard | Discovered new exit (range 1) 9 | -11/Scrapyard | Entered Materials 31 | -10/Materials | Discovered new exit (range 11) 36 | -10/Materials | Entered Mines 74 | -10/Mines | Deemed a non-threat by the Exiles lab entrance 74 | -10/Mines | Discovered new exit (range 5) 77 | -10/Mines | Entered Exiles 90 | -10/Exiles | Met 8R-AWN 99 | -10/Exiles | Met EX-HEX 117 | -10/Exiles | Met EX-BIN 123 | -10/Exiles | Aligned with FarCom system 124 | -10/Exiles | Given EX-Vault access code 136 | -10/Exiles | Opened EX-Vault 147 | -10/Exiles | Found Field Lobotomy Kit 159 | -10/Exiles | Warned to stay clear of 0b10 Research branches 174 | -10/Exiles | Met EX-DEC 191 | -10/Exiles | Discovered new exit (range 14) 197 | -10/Exiles | Left Exiles lab with Field Lobotomy Kit 197 | -10/Exiles | Entered Mines 203 | -9/Mines | Discovered new exit (range 11) 204 | -9/Mines | Met a Derelict bent on vengeance 207 | -9/Mines | Entered Materials 207 | -8/Materials | Evolved 4 slots: Propulsion x4 308 | -8/Materials | Build established: Mutant 351 | -8/Materials | Discovered new exit (range 15) 358 | -8/Materials | Entered Factory 358 | -7/Factory | Evolved 2 slots: Propulsion x1, Utility x1 415 | -7/Factory | Discovered new exit (range 12) 420 | -7/Factory | Entered another Factory area 420 | -6/Factory | Evolved 2 slots: Power x1, Utility x1 436 | -6/Factory | Spotted B-75 Beast 471 | -6/Factory | Discovered new exit (range 9) 476 | -6/Factory | Discovered new exit (range 13) 477 | -6/Factory | Entered Lower Caves 565 | -6/Lower Caves | Discovered new exit (range 11) 588 | -6/Lower Caves | P-60 Hacker assimilated allied SU-HSQ(b) 693 | -6/Lower Caves | Core integrity fell below 50% 710 | -6/Lower Caves | System corruption reached 10% 719 | -6/Lower Caves | Self-destructed Last Messages --------------- Derelict like you now! I just had to learn more about this intriguing device..." 00623_ P-60 Hacker fails to hack C-55 Analyst. 00630_ P-60 Hacker hacks C-55 Analyst, rebooting. 00633_ =T|96GPBWBTW VBX4GM=KXURXDC3Z#H0R/XYPV 00635_ C-55 Analyst reactivates. 00635_ P-60 Hacker hacks C-55 Analyst, rebooting. 00645_ C-55 Analyst reactivates. 00645_ P-60 Hacker fails to hack C-55 Analyst. 00647_ C-55 Analyst suffers critical hit. 00647_ Slammed into P-60 Hacker. 00648_ Destabilizing: System corrupted (+1). 00662_ C-55 Analyst suffers critical hit. 00663_ &8TEHZB5GJJVRMHBWW,VY LO/99#|Y#D9H0Z=MM, 00685_ System corrupted: Energy discharge (-21). 00698_ P-60 Hacker fails to hack C-55 Analyst. 00704_ %R=B6COGA1CH0NH LO OSS LYNBLVFKLKH 00707_ P-60 Hacker fails to hack C-55 Analyst. 00718_ C-55 Analyst destroyed. 00719_ Acquired 36 matter. Map ----- +----------------------------------------------------+ | ?????????????????????????????????????????????????? | | ?????????????????????????????????????????????????? | | ?????????????????????????????????????????????????? | | ?????????????????????????????????????????????????? | | ?????##???########????????????????" #????????????? | | ????##"#### ##????#####???? "" #????????????? | | ????#"" ## ###### ### ##???????????? | | ????#!" # #???????????? | | ????# # #???????????? | | ?????# ## ###### #### #???#???????????? | | ?????### ####### #?????????? ##?????????? | | ???????## ### ##### #?????????? ###???????? | | ????????# #?####??# #?????????? ???????? | | ????????# #???????## ##??????????# ????????? | | ????????# #????????## ##???????????# ????????? | | ????????# #?????????## %#????????###?# #????????? | | ????????# ######?????# ##??###?## ## #????????? | | ????????# #?##### ### #?# # #???????## | | ????????##### #?# "#" #?# #?????### | | ????????????# #?#""" #??# ####### | | ????????????# #?## #????# | | ????????????# #??##" #?????# | | ????????????# ##??## ## ##??#### #### | | ???????????## ##??# #?###?### ##??# | | ???????????# #??# < ####### #??## | | ???????????# #??# @ ##??# | | ???????????## #??# p ####???# | | ????????????## #?## ## #??????## | | ?????????????# ### ###### ##???????#### | | ?????????????# ## #????# ##??????????## | | ?????????????# #???# ##??????????## | | ?????????????## ##???## ##???????????# | | ??????????????## #####?????######????????????# | | ???????????????#####???????????????????????????## | | ????????????????????????????????????????????????## | | ?????????????????????????????????????????????????? | | ?????????????????????????????????????????????????? | | ?????????????????????????????????????????????????? | | ?????????????????????????????????????????????????? | | ?????????????????????????????????????????????????? | | ?????????????????????????????????????????????????? | | ?????????????????????????????????????????????????? | | ?????????????????????????????????????????????????? | | ?????????????????????????????????????????????????? | | ?????????????????????????????????????????????????? | | ?????????????????????????????????????????????????? | | ?????????????????????????????????????????????????? | | ?????????????????????????????????????????????????? | | ?????????????????????????????????????????????????? | | ?????????????????????????????????????????????????? | +----------------------------------------------------+ Best States ------------- Heat Dissipation 37 Energy Generation 10 Energy Capacity 125 Matter Stores 300 Matter Capacity 300 Sight Range 18 Terrain Scan Density 10 Evasion (%) 50 Item Schematics ----------------- None Robot Schematics ------------------ None Fabricated ------------ Nothing Alien Tech Used ----------------- None Achievements -------------- None Challenges ------------ None Game ------ Seed DefenseFireBlaster Manual? 1 Play Time 00:08:44 Cumulative 384.7 hours Start 2021.01.20 @ 17:24:46 End 2021.01.20 @ 17:31:05 Sessions 1 Manual Loads 0 Difficulty Rogue Special Mode None Game No. 715 Rogue 715 Adventurer 0 Explorer 0 Win Type - Total 59 Types 45/5/3/2/1/1/2/0/0 Lore% 93 Gallery% 93 Achievement% 76 Wizard Run 0 Options --------- ASCII 1 Keyboard 1 Movement Numpad Keybinds 0 Fullscreen 2 Font 24/Terminus Map View 76x50 Tactical HUD 1 Map Filters NONE Filters NONE Steam 1 RUN: e8d77e64-5073-4058-8c51-844b8d7a6ae0